[Event "Reykjavik Open 2022"]
[Site "Reykjavik"]
[Date "2022.04.10"]
[Round "7.17"]
[White "Valkama, Eero"]
[Black "Thorhallsson, Throstur"]
[Result "1/2-1/2"]
[ECO "B54"]
[WhiteElo "2244"]
[BlackElo "2414"]
[Annotator "TA"]
[PlyCount "107"]
[EventDate "2022.04.06"]
[EventCountry "ISL"]
[SourceTitle "playchess.com"]
[Source "ChessBase"]
[SourceQuality "1"]
[TimeControl "40/5400+30:1800+30"]

{[%evp 22,107,47,30,38,29,34,31,33,28,33,18,33,1,16,0,12,0,21,10,39,25,13,11,32,15,46,4,47,14,23,33,79,98,85,89,93,75,98,93,105,95,128,128,116,108,130,129,135,132,143,110,115,116,136,129,132,0,0,0,0,0,0,0,0,0,0,0,0,0,0,0,0,0,0,0,0,0,0,0,0,0,0,0,0,0,0,0]} 1. e4 {[%emt 0:02:19]} c5 {[%emt 0:00:21]} 2. Nf3 {[%emt 0:00:05]} e6 {[%emt 0:00:23]} 3. c4 {[%emt 0:00:14]} Nc6 {[%emt 0:00:43]} 4. Nc3 {[%emt 0:00:06]} d6 {[%emt 0:01:02]} 5. d4 {[%emt 0:00:14]} cxd4 {[%emt 0:00:17]} 6. Nxd4 {[%emt 0:00:09]} Nf6 {[%emt 0:00:33]} 7. Be2 {[%emt 0:02:06]} Be7 {[%emt 0:00:31]} 8. O-O {[%emt 0:00:21]} O-O {[%emt 0:00:18]} 9. Be3 {[%emt 0:02:08]} Bd7 {[%emt 0:02:13]} 10. Kh1 {[%emt 0:14:10]} a6 {[%emt 0:01:19]} 11. f4 {[%emt 0:06:42]} Rc8 {[%emt 0:04:32]} 12. Rc1 {[%emt 0:02:39]} Nxd4 {[%emt 0:07:59] B54: Sicilian: 2...d6 3 d4 cxd4 4 Nxd4, Unusual Lines .} 13. Bxd4 {[%emt 0:07:23]} Bc6 {[%emt 0:01:00]} 14. Bd3 {[%emt 0:02:51]} Nd7 {[%emt 0:05:53] [#] White is slightly better.} 15. Bg1 $146 {[%emt 0:05:49]} ({Predecessor:} 15. Bb1 Bf6 16. Bxf6 Nxf6 17. Qd3 g6 18. Rcd1 Nh5 19. Qxd6 Qh4 20. Kg1 Rfd8 21. Qe5 Rxd1 22. Nxd1 {½-½ (39) Nguyen,H (2090)-Bui,V (2463) Can Tho 2012}) 15... Re8 {[%emt 0:09:09]} 16. b4 {[%emt 0:04:43]} b6 {[%emt 0:02:16]} 17. Qb3 {[%emt 0:01:07]} Bb7 {[%emt 0:05:19]} 18. a3 {[%emt 0:02:49]} Qc7 {[%emt 0:00:50]} 19. Rfd1 {[%emt 0:04:51]} Qb8 {[%emt 0:03:11]} 20. Qc2 {[%emt 0:04:56]} g6 {[%emt 0:03:16][%cal Od6d5]} 21. Qe2 {[%emt 0:02:39]} Bf8 {[%emt 0:03:52]} 22. Qf2 {[%emt 0:02:59]} Bc6 {[%emt 0:05:12]} 23. Be2 {[%emt 0:09:04]} Bh6 {[%emt 0:05:32]} 24. Rc2 {[%emt 0:01:36][%cal Bc1c2,Bc2d2,Bd2d6][%mdl 32]} b5 {[%emt 0:10:21]} 25. Rcd2 {[%emt 0:05:28]} Nf6 {[%emt 0:10:42]} 26. Rxd6 {[%emt 0:00:55]} (26. Qh4 {keeps more tension.} Bf8 27. f5 exf5 28. Qxf6 Bg7 29. Qxd6 Bxc3 30. cxb5 Qxd6 31. Rxd6 Bxb5 32. Bxb5 axb5 33. exf5 Bb2 34. R6d5) 26... Nxe4 {[%emt 0:00:26]} (26... bxc4 $1 $14 27. f5 (27. Bxc4 Nxe4 28. Nxe4 Bxe4 $11) 27... Nxe4 28. Nxe4 Bxe4 29. fxe6 fxe6) 27. Nxe4 $16 {[%emt 0:00:04]} Bxe4 {[%emt 0:00:02]} 28. c5 {[%emt 0:01:18]} Qa8 {[%emt 0:01:10][%cal Oh6f4] [#]} 29. Bf3 $1 {[%emt 0:03:01]} a5 {[%emt 0:00:29]} 30. Bxe4 {[%emt 0:03:21]} Qxe4 {[%emt 0:00:02]} 31. R6d4 {[%emt 0:00:54]} ({Resist} 31. bxa5 Bf8 $14) 31... Qa8 {[%emt 0:00:24]} 32. Qf1 {[%emt 0:03:12]} axb4 {[%emt 0:00:38]} 33. axb4 {[%emt 0:00:03]} Bg7 {[%emt 0:01:55]} 34. Rd7 {[%emt 0:00:43]} ({Not} 34. Qxb5 Bxd4 35. Rxd4 e5 36. fxe5 Rxe5 $17) 34... Qa4 {[%emt 0:02:16]} 35. Qe1 {[%emt 0:01:58] &Bianco is more active.} Qc2 {[%emt 0:01:35]} 36. Bd4 {[%emt 0:00:35] Inhibits Bc3.} Bxd4 {[%emt 0:01:57]} 37. R7xd4 {[%emt 0:00:03]} Ra8 {[%emt 0:00:46] [#]} 38. h3 $1 {[%emt 0:00:36]} h5 {[%emt 0:01:12]} 39. Rc1 {[%emt 0:00:42]} (39. Kh2 $16) 39... Qb2 $11 {[%emt 0:01:35] The position is equal.} 40. Qd2 {[%emt 0:00:00]} Qxd2 {[%emt 0:00:00]} 41. Rxd2 {[%emt 0:01:05] And now Rd7 would win.} Red8 {[%emt 0:02:16] Prevents Rd7.} 42. Rxd8+ {[%emt 0:09:10]} Rxd8 {[%emt 0:00:10][%mdl 4096] Endgame KR-KR} 43. Kg1 {[%emt 0:00:04] Hoping for Kf2.} Kf8 {[%emt 0:00:48]} 44. Kf2 {[%emt 0:00:04] aiming for Ke3.} Ke7 {[%emt 0:02:46]} ({Don't do} 44... Rd4 45. Ke3 Rd5 46. g3 $16) 45. Ke3 {[%emt 0:00:33] Prevents Rd4. Threatens to win with Ra1.} Ra8 {[%emt 0:01:38] Prevents Ra1.} 46. c6 {[%emt 0:02:51] Kd4 is the strong threat.} Kd6 {[%emt 0:11:33]} 47. c7 {[%emt 0:15:04]} Rc8 {[%emt 0:01:21]} 48. Kd4 {[%emt 0:00:06] Strongly threatening g4.} h4 $1 {[%emt 0:02:23]} (48... Rxc7 49. Rxc7 Kxc7 50. Kc5 $18) 49. Rc5 {[%emt 0:00:39]} f6 {[%emt 0:02:03]} 50. Rc2 {[%emt 0:01:33]} Kd7 {[%emt 0:00:51]} (50... Rxc7 51. Rxc7 e5+ 52. fxe5+ fxe5+ 53. Ke4 Kxc7 54. Kxe5 $18) 51. Rc1 {[%emt 0:01:31]} Kd6 $1 {[%emt 0:00:28]} (51... Rxc7 $2 52. Rxc7+ Kxc7 53. Kc5 $18) 52. Rc5 {[%emt 0:00:07]} Kd7 $1 {[%emt 0:01:13]} 53. Rc1 {[%emt 0:03:04]} Kd6 $1 {[%emt 0:00:08]} (53... Rxc7 $2 54. Rxc7+ Kxc7 55. Kc5 $18) 54. Rc5 {[%emt 0:00:04] Weighted Error Value: White=0.09 (flawless) /Black=0.08 (flawless)} 1/2-1/2

[Event "Reykjavik Open 2022"]
[Site "Reykjavik"]
[Date "2022.04.10"]
[Round "7.18"]
[White "Thorfinnsson, Bragi"]
[Black "Popvasilev, Kaloyan"]
[Result "1-0"]
[ECO "B23"]
[WhiteElo "2419"]
[BlackElo "2191"]
[Annotator "TA"]
[PlyCount "93"]
[EventDate "2022.04.06"]
[EventCountry "ISL"]
[SourceTitle "playchess.com"]
[Source "ChessBase"]
[SourceQuality "1"]
[TimeControl "40/5400+30:1800+30"]

{[%evp 9,93,6,-2,-20,-14,-22,0,0,18,0,18,0,19,-18,43,11,2,8,44,12,41,54,52,33,52,20,55,62,62,43,75,0,61,-31,114,77,107,68,78,0,0,23,20,40,31,0,0,0,0,-10,0,-23,33,0,0,-12,-20,-74,-39,-29,0,0,0,0,24,38,14,-11,33,35,117,116,114,115,581,462,454,441,930,931,12837,12837,29986,29987,29987,29988]} 1. e4 {[%emt 0:01:05]} c5 {[%emt 0:00:07]} 2. Nc3 {[%emt 0:00:32]} d6 {[%emt 0:00:32]} 3. f4 {[%emt 0:01:24]} g6 {[%emt 0:00:23]} 4. Nf3 {[%emt 0:00:07]} Bg7 {[%emt 0:00:14]} 5. Bb5+ {[%emt 0:00:47]} Bd7 {[%emt 0:00:59]} 6. Bc4 {[%emt 0:01:10] B23: Closed Sicilian: Lines without g3.} Nc6 {[%emt 0:06:48]} 7. O-O {[%emt 0:02:05]} Na5 {[%emt 0:01:27]} 8. Be2 {[%emt 0:02:32] The position is equal.} Nh6 {[%emt 0:02:54]} 9. d3 {[%emt 0:04:23]} f5 {[%emt 0:16:12]} 10. Qe1 {[%emt 0:02:04]} Nc6 {[%emt 0:06:00] [#]} 11. Bd1 $146 {[%emt 0:03:47]} ({Predecessor:} 11. Qh4 e6 12. Qh3 Nf7 13. g4 Nd4 14. Bd1 Qb6 15. Kh1 O-O-O 16. a4 Kb8 17. a5 {1-0 (47) Trent,L (2399)-Jumabayev,R (2637) Chess.com INT 2021}) 11... Nf7 {[%emt 0:14:51]} ({Black should try} 11... O-O $11) 12. exf5 $14 {[%emt 0:08:13]} Bxf5 {[%emt 0:02:23]} 13. Nh4 {[%emt 0:09:39]} Qd7 {[%emt 0:04:15]} 14. h3 {[%emt 0:05:08]} h5 {[%emt 0:02:15] Inhibits g4.} 15. Ne4 {[%emt 0:04:47]} O-O-O {[%emt 0:03:42]} 16. c3 {[%emt 0:00:20]} Kb8 {[%emt 0:02:29]} 17. a3 {[%emt 0:06:52]} b6 {[%emt 0:03:29]} 18. Ba4 {[%emt 0:04:18]} e6 {[%emt 0:11:44]} 19. b4 {[%emt 0:03:04]} d5 {[%emt 0:07:04] [#]} 20. Nf2 {[%emt 0:05:45]} (20. Ng5 $1 $16 Nxg5 21. fxg5) 20... Qd6 {[%emt 0:00:26]} (20... c4 $11) 21. bxc5 {[%emt 0:04:50]} (21. Ra2 $14) 21... bxc5 {[%emt 0:00:11]} (21... Qxc5 $15 {keeps the upper hand.} 22. Nxf5 gxf5) 22. Bd2 {[%emt 0:03:58]} Ka8 {[%emt 0:00:35]} 23. Qe2 {[%emt 0:01:55]} (23. Ne4 {with more complications.} dxe4 24. dxe4 Bxh3 25. e5) 23... Bf6 {[%emt 0:02:01] [#]} 24. Nxf5 {[%emt 0:02:03]} (24. Nf3 $1 $16) 24... gxf5 $11 {[%emt 0:01:16]} 25. Rfe1 {[%emt 0:01:00]} Rde8 {[%emt 0:00:16]} 26. Rab1 {[%emt 0:01:36]} h4 {[%emt 0:02:56]} 27. d4 {[%emt 0:02:40] Qa6 is the strong threat.} c4 {[%emt 0:00:32]} 28. Nd1 $1 {[%emt 0:00:48]} Rhg8 {[%emt 0:00:08]} 29. Ne3 {[%emt 0:00:25]} Re7 {[%emt 0:01:26]} 30. Qf3 {[%emt 0:03:31][%cal Oe3c4]} Rg3 {[%emt 0:00:40]} (30... Nfd8 $11) 31. Qh5 {[%emt 0:02:49][%cal Oe3f5] Threatens to win with Nxf5!} (31. Nxc4 $5 Qc7 32. Rxe6 (32. Bxc6+ Qxc6 33. Na5 Qa4 $17) 32... Rxe6 33. Qxd5 $11) 31... Nfd8 {[%emt 0:03:43]} 32. Qh6 {[%emt 0:03:51]} Rf7 {[%emt 0:00:17]} 33. Nc2 {[%emt 0:01:32]} (33. Kh1 $11) 33... Qe7 {[%emt 0:00:52] White must now prevent ...Rh7.} (33... Rg8 $5 {[%cal Rg8h8]} 34. Qh5 Rfg7 $17) 34. Qh5 {[%emt 0:01:48]} Rfg7 {[%emt 0:00:04]} (34... Rh7 $5 {[%cal Rh7h5]} 35. Qd1 Rhg7 $17) 35. Ne3 {[%emt 0:02:05][%cal Oe3f5] And now Nxf5! would win.} Qf8 {[%emt 0:03:12]} 36. Kh1 {[%emt 0:00:53]} Be7 {[%emt 0:00:41]} 37. Qd1 {[%emt 0:01:35]} Bd6 {[%emt 0:00:36]} (37... Bxa3 $2 38. Bxc6+ Nxc6 39. Qa4 $18) 38. Rf1 {[%emt 0:01:21]} Qg8 {[%emt 0:00:54]} (38... Bxa3 $2 39. Bxc6+ Nxc6 40. Qa4 $18) 39. Qe2 {[%emt 0:00:21]} Nb8 {[%emt 0:00:48]} ({Better is} 39... R3g6 $14) 40. Be1 $16 {[%emt 0:00:00]} R3g6 {[%emt 0:00:00]} 41. Bxh4 {[%emt 0:06:53] A strong pair of Bishops.} Rh7 $2 {[%emt 0:03:34][%mdl 8192] Black cannot hold the game after this.} (41... Bc7 $16 {is more resistant.} 42. Rb2 Nb7) 42. Bxd8 {[%emt 0:03:43]} Qxd8 {[%emt 0:00:11] [#]} 43. Nxc4 $1 {[%emt 0:00:22][%mdl 512]} Bxf4 {[%emt 0:18:06]} (43... Rgh6 $142 44. Nxd6 Qxd6) (43... a6 44. Nb6+) 44. Rxf4 $18 {[%emt 0:02:57][%cal Bf1f4,Bf4f5,Bf5f7][%mdl 32]} dxc4 {[%emt 0:00:05] [#]} 45. Rxf5 $3 {[%emt 0:02:24][%mdl 512] Qe4+ would kill now.} a5 {[%emt 0:04:10]} (45... Rgg7 46. Qf3+) 46. Qf3+ {[%emt 0:00:57]} Ka7 {[%emt 0:00:07]} 47. Rf7+ {[%emt 0:00:16] Weighted Error Value: White=0.24 (precise) /Black=0.56} 1-0

[Event "Reykjavik Open 2022"]
[Site "Reykjavik"]
[Date "2022.04.10"]
[Round "7.19"]
[White "Mahitosh Dey"]
[Black "Romanishin, Oleg M"]
[Result "0-1"]
[ECO "D02"]
[WhiteElo "2176"]
[BlackElo "2415"]
[Annotator "TA"]
[PlyCount "70"]
[EventDate "2022.04.06"]
[EventCountry "ISL"]
[SourceTitle "playchess.com"]
[Source "ChessBase"]
[SourceQuality "1"]
[TimeControl "40/5400+30:1800+30"]

{[%evp 12,70,17,-14,0,-14,0,-6,0,0,0,0,-7,-12,-11,-16,-2,-2,0,-3,-1,-2,-3,0,-10,0,0,-22,-30,-72,-64,-74,-51,-73,-70,-154,-161,-161,-142,-156,-117,-117,-117,-117,-116,-106,-111,-232,-238,-222,-97,-463,-223,-436,-218,-437,-161,-458,-448,-450,-437]} 1. d4 {[%emt 0:00:04]} Nf6 {[%emt 0:02:10]} 2. Nf3 {[%emt 0:00:09]} g6 {[%emt 0:01:08]} 3. Bf4 {[%emt 0:00:10]} Bg7 {[%emt 0:02:04]} 4. c3 {[%emt 0:00:09]} O-O {[%emt 0:02:37]} 5. h3 {[%emt 0:00:05]} d5 {[%emt 0:05:17]} 6. e3 {[%emt 0:00:20]} c5 {[%emt 0:07:30]} 7. Bd3 {[%emt 0:01:04]} Nc6 {[%emt 0:03:21] D02: 1 d4 d5 2 Nf3 sidelines, including 2...Nf6 3 g3 and 2...Nf6 3 Bf4.} 8. Nbd2 {[%emt 0:00:21] 8.Nbd2 is better than 8.0-0.} Nd7 {[%emt 0:03:12]} 9. O-O {[%emt 0:01:49]} e5 {[%emt 0:00:15] The position is equal.} 10. dxe5 {[%emt 0:00:11]} Ndxe5 {[%emt 0:00:19]} 11. Nxe5 {[%emt 0:00:05]} Nxe5 {[%emt 0:01:06]} 12. Bxe5 {[%emt 0:02:53]} Bxe5 {[%emt 0:00:07]} 13. e4 {[%emt 0:00:04] [#]} Bg7 $146 {[%emt 0:21:01]} ({Predecessor:} 13... Be6 14. Re1 Bc7 15. exd5 Bxd5 16. Be4 Re8 17. Qc2 Qd6 18. Nf3 Rad8 19. Bxd5 Qxd5 {½-½ (55) Keller,D (2142)-Voracek,M (2210) Czech Republic 2011}) 14. exd5 {[%emt 0:00:09]} Qxd5 {[%emt 0:00:06]} 15. Be4 {[%emt 0:00:30]} Qd8 {[%emt 0:04:52]} 16. Nc4 {[%emt 0:02:35]} Be6 {[%emt 0:01:26]} 17. Ne3 {[%emt 0:01:36]} Qb6 {[%emt 0:02:38]} 18. Qc2 {[%emt 0:00:12]} Rad8 {[%emt 0:00:41]} 19. b3 {[%emt 0:04:07]} Qa5 {[%emt 0:08:30]} 20. Rac1 {[%emt 0:00:10]} b5 {[%emt 0:00:12]} 21. Bd3 {[%emt 0:01:11]} Bh6 {[%emt 0:06:49][%cal Oc5c4] &Nero is more active.} 22. Rce1 {[%emt 0:02:33]} Rd6 {[%emt 0:02:07][%cal Oc5c4]} 23. Re2 {[%emt 0:02:24]} (23. Be2 $15) 23... Rfd8 $17 {[%emt 0:01:14]} 24. Be4 {[%emt 0:01:29]} c4 {[%emt 0:00:59]} 25. b4 {[%emt 0:03:14]} Qb6 {[%emt 0:05:09]} 26. a4 {[%emt 0:00:38] [#]} Rd3 $1 {[%emt 0:06:39][%mdl 512]} 27. axb5 {[%emt 0:00:38]} ({But not} 27. Bxd3 $2 cxd3 28. a5 Qc7 $19) 27... Bxe3 {[%emt 0:04:08]} 28. fxe3 {[%emt 0:00:07]} Rxe3 {[%emt 0:00:05]} 29. Rxe3 {[%emt 0:00:52]} (29. Kh2 $17) 29... Qxe3+ $19 {[%emt 0:00:09]} 30. Rf2 {[%emt 0:00:08] [#]} Qb6 {[%emt 0:01:38]} (30... f5 $1 $19 {[%cal Rf5e4] and Black stays clearly on top.} 31. Bf3 Rd3) 31. Qa2 $2 {[%emt 0:00:52][%mdl 8192]} (31. Qc1 $17 {is a better chance.}) 31... Rd1+ {[%emt 0:00:57]} 32. Kh2 {[%emt 0:00:04]} Qxb5 {[%emt 0:00:54]} (32... h5 $142 33. h4 Bg4 34. Bxg6 Qd6+ 35. g3 fxg6 36. Qxc4+ Be6) 33. Bf3 $2 {[%emt 0:01:04]} (33. Qa5 Qxa5 34. bxa5) 33... Qb8+ {[%emt 0:01:31]} 34. g3 {[%emt 0:00:07]} Rd3 {[%emt 0:00:06]} 35. Qa5 {[%emt 0:00:23]} Qb6 {[%emt 0:02:18] Weighted Error Value: White=0.44/Black=0.22 (precise)} 0-1

[Event "Reykjavik Open 2022"]
[Site "Reykjavik"]
[Date "2022.04.10"]
[Round "7.20"]
[White "Willow, Jonah B"]
[Black "Jaksland, Tim"]
[Result "1-0"]
[ECO "C99"]
[WhiteElo "2365"]
[BlackElo "2201"]
[Annotator "TA"]
[PlyCount "101"]
[EventDate "2022.04.06"]
[EventCountry "ISL"]
[SourceTitle "playchess.com"]
[Source "ChessBase"]
[SourceQuality "1"]
[TimeControl "40/5400+30:1800+30"]

{[%evp 25,101,36,37,10,13,12,18,14,0,6,23,-27,0,-12,-9,-2,-11,-12,-15,-16,-15,-35,-27,0,0,-41,0,0,0,0,0,-8,8,4,12,8,30,39,38,31,33,17,24,26,22,33,30,0,0,0,0,-11,0,0,0,0,0,0,2,5,0,0,8,7,109,99,7940,7789,6287,6195,6195,5985,5273,3173,12797,12793,29997,29998]} 1. e4 {[%emt 0:01:49]} e5 {[%emt 0:00:19]} 2. Nf3 {[%emt 0:00:23]} Nc6 {[%emt 0:00:07]} 3. Bb5 {[%emt 0:01:38]} a6 {[%emt 0:00:14]} 4. Ba4 {[%emt 0:00:04]} Nf6 {[%emt 0:00:36]} 5. O-O {[%emt 0:00:11]} Be7 {[%emt 0:00:39]} 6. Re1 {[%emt 0:00:28]} b5 {[%emt 0:00:17]} 7. Bb3 {[%emt 0:00:03]} d6 {[%emt 0:00:34]} 8. c3 {[%emt 0:00:46]} O-O {[%emt 0:00:33]} 9. h3 {[%emt 0:00:11]} Na5 {[%emt 0:00:43]} 10. Bc2 {[%emt 0:00:20]} c5 {[%emt 0:00:25]} 11. d4 {[%emt 0:00:44]} Qc7 {[%emt 0:00:21]} 12. Nbd2 {[%emt 0:00:40][%cal Bb1d2,Bd2b3,Bb3d4][%mdl 32]} cxd4 {[%emt 0:00:56]} 13. cxd4 {[%emt 0:00:10]} Bd7 {[%emt 0:00:27]} 14. Bd3 {[%emt 0:02:40] C99: Closed Ruy Lopez: Chigorin Defence: 11 d4 Qc7 12 Nbd2 cxd4.} Nc6 {[%emt 0:10:35]} 15. a3 {[%emt 0:02:44]} exd4 {[%emt 0:04:02]} 16. Nb3 {[%emt 0:01:47] [#] The position is equal.} Rfe8 $146 {[%emt 0:10:14]} ({Predecessor:} 16... Qa7 17. Nfxd4 Ne5 18. Be3 Qb7 19. Nf5 Bxf5 20. exf5 Rfe8 21. Bd4 Bd8 22. Be2 Bb6 {0-1 (60) Laube,B (2405)-Neumann,B (2392) ICCF email 2008}) 17. Nbxd4 {[%emt 0:03:26]} Ne5 {[%emt 0:09:54]} 18. Bf1 {[%emt 0:08:23]} (18. Nf5 $142) 18... h6 {[%emt 0:04:24]} (18... Qb7 $5 {[%cal Rf6e4]}) 19. Bf4 {[%emt 0:09:18]} Bf8 {[%emt 0:01:24]} 20. Rc1 {[%emt 0:03:07]} Qb7 {[%emt 0:01:35]} 21. Nb3 {[%emt 0:01:33]} Rad8 {[%emt 0:13:28]} ({Don't play} 21... Nxe4 22. Bxe5 dxe5 23. Na5 (23. Rxe4 Qxe4 24. Qxd7 Qf4 $11) 23... Nxf2 24. Nxb7 $18) 22. Na5 {[%emt 0:03:31]} Qa8 {[%emt 0:03:24]} 23. Rc7 {[%emt 0:07:18]} Rc8 {[%emt 0:07:42]} 24. Rxc8 {[%emt 0:03:37]} Qxc8 {[%emt 0:00:43]} 25. Bd2 {[%emt 0:10:01]} Nc6 {[%emt 0:07:45]} 26. Bd3 {[%emt 0:00:56][%cal Bf1d3,Bd3b1,Bb1a2][%mdl 32]} Nxa5 {[%emt 0:02:40]} 27. Bxa5 {[%emt 0:00:05]} Bc6 {[%emt 0:01:07][%cal Rc6e4]} 28. Nd2 {[%emt 0:02:07]} Bb7 {[%emt 0:02:15]} 29. Bb1 {[%emt 0:03:15]} Nd7 {[%emt 0:07:05]} 30. Bc3 {[%emt 0:02:40]} Ne5 {[%emt 0:00:58]} 31. Ba2 {[%emt 0:01:24]} Qc7 {[%emt 0:03:30]} 32. Re3 {[%emt 0:00:33]} Bc8 {[%emt 0:02:43]} 33. Rg3 {[%emt 0:00:48]} Be6 $1 {[%emt 0:03:07]} 34. Bxe6 {[%emt 0:02:30]} Rxe6 {[%emt 0:00:34]} 35. f4 {[%emt 0:00:26]} Rg6 {[%emt 0:00:55]} 36. Qe1 {[%emt 0:05:46]} (36. Re3 $5 {[%cal Rf4e5]} Qc5 37. Qe2 $14) 36... Rxg3 {[%emt 0:00:52]} 37. Qxg3 {[%emt 0:00:02]} Nc4 {[%emt 0:00:17]} 38. Nf3 {[%emt 0:02:04]} Qc5+ {[%emt 0:00:21]} 39. Bd4 {[%emt 0:00:17]} Qc6 {[%emt 0:00:06]} (39... Qh5 {looks sharper.} 40. f5 d5 41. f6 dxe4 42. fxg7 Bd6) 40. Qe1 {[%emt 0:00:00]} d5 {[%emt 0:00:00]} 41. e5 {[%emt 0:04:00]} Bc5 {[%emt 0:07:18]} 42. Kh2 {[%emt 0:02:14]} Bxd4 {[%emt 0:06:33]} 43. Nxd4 {[%emt 0:01:10]} Qb6 {[%emt 0:00:06]} 44. Qc3 {[%emt 0:07:49]} a5 {[%emt 0:04:28] [#]} (44... Qg6 $11 {remains equal.}) 45. b3 $1 $16 {[%emt 0:01:09]} Nxa3 {[%emt 0:00:49][%mdl 8192] This move loses the game for Black.} (45... b4 $16 46. axb4 axb4) 46. Qc8+ $18 {[%emt 0:03:19]} Kh7 {[%emt 0:00:06]} 47. Nc6 {[%emt 0:00:03] Ne7 would kill now.} Qc5 {[%emt 0:01:25] [#] Prevents Ne7.} 48. Qf5+ $1 {[%emt 0:00:32]} Kg8 {[%emt 0:00:06] [#]} 49. e6 $1 {[%emt 0:00:12]} fxe6 {[%emt 0:01:56]} (49... Qxc6 50. Qxf7+) 50. Qxe6+ {[%emt 0:00:02]} Kf8 {[%emt 0:02:34]} 51. Ne5 {[%emt 0:00:05] Weighted Error Value: White=0.06 (flawless) /Black=0.25 (precise)} 1-0

[Event "Reykjavik Open 2022"]
[Site "Reykjavik"]
[Date "2022.04.10"]
[Round "7.21"]
[White "Baskin, Robert"]
[Black "Lohia, Sohum"]
[Result "1-0"]
[ECO "C60"]
[WhiteElo "2383"]
[BlackElo "2251"]
[Annotator "TA"]
[PlyCount "53"]
[EventDate "2022.04.06"]
[EventCountry "ISL"]
[SourceTitle "playchess.com"]
[Source "ChessBase"]
[SourceQuality "1"]
[TimeControl "40/5400+30:1800+30"]

{[%evp 9,53,24,25,36,33,27,38,34,39,50,38,38,47,38,83,77,85,79,91,81,141,87,145,138,167,175,235,116,201,172,252,222,241,229,233,242,245,192,744,755,795,819,656,446,447,442]} 1. e4 {[%emt 0:05:22]} e5 {[%emt 0:00:12]} 2. Nf3 {[%emt 0:00:12]} Nc6 {[%emt 0:00:06]} 3. Bb5 {[%emt 0:00:16]} g6 {[%emt 0:00:12]} 4. c3 {[%emt 0:00:09]} a6 {[%emt 0:00:21]} 5. Bxc6 {[%emt 0:00:13]} dxc6 {[%emt 0:00:15]} 6. d4 {[%emt 0:00:08] C60: Ruy Lopez: Unusual Black 3rd moves and 3...g6.} exd4 {[%emt 0:00:24]} 7. cxd4 {[%emt 0:00:07]} Bg4 {[%emt 0:05:54]} 8. Qb3 {[%emt 0:00:59] White is slightly better.} Bxf3 {[%emt 0:03:13]} 9. gxf3 {[%emt 0:00:07]} Rb8 {[%emt 0:18:26]} 10. Be3 {[%emt 0:01:26]} Bg7 {[%emt 0:01:51]} 11. Nc3 {[%emt 0:00:42] [#]} Ne7 $146 {[%emt 0:04:02]} ({Predecessor:} 11... Nf6 12. O-O-O O-O 13. Rhg1 Re8 14. h4 Qd7 15. Rg5 Qh3 16. e5 Nd5 17. Nxd5 cxd5 18. Qxd5 Qxh4 {1-0 (28) Kovchan,A (2566)-Guichard,P (2409) Porticcio 2019}) 12. O-O-O {[%emt 0:00:33]} Qd7 {[%emt 0:08:53]} 13. h4 {[%emt 0:04:34][%cal Bh2h4,Bh4h5][%mdl 32] &Bianco is more active.} Qe6 {[%emt 0:09:49]} 14. Qc2 {[%emt 0:08:25]} O-O {[%emt 0:07:41]} (14... h5 $142) 15. Kb1 {[%emt 0:10:54]} (15. h5 $142) 15... b5 {[%emt 0:01:59]} (15... h5 $142) 16. h5 $16 {[%emt 0:03:59]} Qc4 {[%emt 0:13:50]} 17. b3 {[%emt 0:11:49]} Qb4 {[%emt 0:01:16]} (17... Qe6 $142 18. h6 Bf6) 18. Ne2 {[%emt 0:00:12]} (18. e5 $18 {has better winning chances.}) 18... Qd6 {[%emt 0:03:42]} (18... a5 $16 19. Bd2 Qd6) 19. Nf4 {[%emt 0:05:51][%cal Be2f4,Bf4d3,Bd3c5][%mdl 32]} a5 {[%emt 0:02:46] [#]} (19... Rbd8 {was called for.} 20. h6 Bh8) 20. Nd3 $1 $18 {[%emt 0:02:03]} a4 {[%emt 0:01:34]} 21. Nc5 {[%emt 0:03:17]} axb3 {[%emt 0:01:48]} 22. Qxb3 {[%emt 0:00:07] hxg6 is the strong threat.} ({But not} 22. axb3 $6 Ra8 $16) 22... Ra8 {[%emt 0:01:43]} 23. f4 {[%emt 0:03:48][%cal Bf3f4,Bf4f5,Bf5f6][%mdl 32] And now f5! would win.} Nc8 $2 {[%emt 0:02:39] [#]} (23... Ra7) 24. hxg6 {[%emt 0:01:38] White is clearly winning.} hxg6 {[%emt 0:00:11]} 25. f5 {[%emt 0:00:23]} Nb6 {[%emt 0:00:41]} 26. e5 {[%emt 0:01:09]} Qd5 {[%emt 0:02:11]} 27. f6 {[%emt 0:00:20] Weighted Error Value: White=0.24 (precise) /Black=0.29 (precise)} 1-0